fUST/lending_fUST_20250830
["ID","MTS","AMOUNT","RATE_DAILY","PERIOD"]
[382285494,1756564238754,-1766.0,0.0001899,2]
[382285497,1756564238763,-1766.0,0.0001899,2]
[382285498,1756564238773,-1667.28661676,0.0001899,2]
[382285500,1756564238783,-1766.0,0.0001899,2]
[382285502,1756564238792,-1766.0,0.0001899,2]
[382285505,1756564238802,-1766.0,0.0001899,2]
[382285507,1756564238812,-1766.0,0.0001899,2]
[382285508,1756564238822,-1766.0,0.0001899,2]
[382285510,1756564238833,-1766.0,0.0001899,2]
[382285512,1756564238846,-1766.0,0.0001899,2]
[382285514,1756564238856,-1766.0,0.0001899,2]
[382285516,1756564238866,-1766.0,0.0001899,2]
[382285518,1756564238876,-1766.0,0.0001899,2]
[382285520,1756564238890,-2318.90257366,0.0001899,2]
[382285522,1756564238899,-485652.59325187,0.0001899,2]
[382285526,1756564238936,-3721.54234939,0.0001899,2]
[382285658,1756564240526,-154.49793884,0.00018545,2]
[382285940,1756564271044,2000.0,0.00031167,60]
[382285941,1756564283871,2000.0,0.00031167,60]
[382285943,1756564360005,-220.46657909,0.00018445,2]
[382285944,1756564374249,-2414.60345772,0.00018445,2]
[382285945,1756564382661,160.0,0.00018445,2]
[382285946,1756564382696,-344.6254856,0.00018446,2]
[382285947,1756564383147,300.0,0.00018445,2]
[382285948,1756564385689,220.46657909,0.00018399,2]
[382285949,1756564388057,-171.19046165,0.00018446,2]
[382285950,1756564392010,-169.26903636,0.00018446,2]
[382285951,1756564392967,171.24,0.00018436,3]
[382285952,1756564395992,-416.3984427,0.00018446,2]
[382285953,1756564396685,168.0,0.00018333,2]
[382285954,1756564398524,-239.47778868,0.00018446,2]
[382285955,1756564404501,513.77,0.00018436,3]
[382285956,1756564412898,3521.370533,0.00018399,2]
[382285957,1756564414528,115.95597247,0.00018436,3]
[382285958,1756564414555,1137.57402753,0.00018436,3]
[382285959,1756564415496,567.18260045,0.00018399,2]
[382285960,1756564415551,220.69217266,0.00018399,2]
[382285962,1756564424594,681.933765,0.00013699,2]
[382285963,1756564425202,626.76,0.00018436,3]
[382285964,1756564435877,313.38,0.00018436,3]
[382285965,1756564442595,300.0,0.00018445,2]
[382285966,1756564446964,156.69,0.00018436,3]
[382285967,1756564450525,206.64158373,0.00017892,2]
[382285968,1756564457632,470.12,0.00018436,3]
[382285969,1756564472350,374.89262303,0.00018445,2]
[382285970,1756564474257,161.73324219,0.00018445,2]
[382285971,1756564474294,165.29312739,0.00018445,2]
[382285972,1756564474325,514.06904985,0.00018445,2]
[382285973,1756564474365,639.54406104,0.00018445,2]
[382285974,1756564474398,648.29534952,0.00018445,2]
[382285976,1756564485815,263.45579034,0.00018445,2]
[382285977,1756564492205,291.06542282,0.00018445,2]
[382285978,1756564492345,313.80713931,0.00018445,2]
[382285979,1756564492496,500.0,0.00018445,2]
[382285980,1756564492556,313.80713931,0.00018445,2]
[382285981,1756564492672,186.19286069,0.00018445,2]
[382285982,1756564493642,500.0,0.00018445,2]
[382285983,1756564498425,446.88004514,0.00018399,2]
[382285984,1756564498449,208.99618624,0.00018399,2]
[382285985,1756564502971,300.0,0.00018445,2]
[382285986,1756564504467,1200.0,0.00018445,2]
[382285987,1756564510150,500.0,0.00018445,2]
[382285988,1756564510495,621.6381354,0.00018445,2]
[382285989,1756564510529,500.0,0.00018445,2]
[382285990,1756564510566,378.3618646,0.00018445,2]
[382285991,1756564512139,378.3618646,0.00018445,2]
[382285992,1756564522428,500.0,0.00018445,2]
[382285993,1756564522484,500.0,0.00018445,2]
[382285994,1756564522538,281.00204611,0.00018445,2]
[382285995,1756564524662,321.67021823,0.00018445,2]
[382285996,1756564527840,500.0,0.00018445,2]
[382285997,1756564527899,500.0,0.00018445,2]
[382285998,1756564527949,500.0,0.00018445,2]
[382285999,1756564528008,500.0,0.00018445,2]
[382286000,1756564528074,547.52444132,0.00018445,2]
[382286001,1756564537378,523.96453609,0.00018187,2]
[382286002,1756564539758,1238.49070741,0.0001842,2]
[382286003,1756564539781,857.36743694,0.0001842,2]
[382286004,1756564542361,500.0,0.00018445,2]
[382286005,1756564542395,500.0,0.00018445,2]
[382286006,1756564542450,345.5567714,0.00018445,2]
[382286007,1756564552355,500.0,0.00018445,2]
[382286009,1756564552405,500.0,0.00018445,2]
[382286010,1756564552471,500.0,0.00018445,2]
[382286011,1756564552516,500.0,0.00018445,2]
[382286012,1756564552589,343.9875399,0.00018445,2]
[382286013,1756564552628,500.0,0.00018445,2]
[382286014,1756564552682,500.0,0.00018445,2]
[382286015,1756564552845,500.0,0.00018445,2]
[382286016,1756564552910,500.0,0.00018445,2]
[382286017,1756564552967,500.0,0.00018445,2]
[382286018,1756564553017,500.0,0.00018445,2]
[382286019,1756564553080,647.88355575,0.00018445,2]
[382286020,1756564562828,151.0,0.000183,2]
[382286021,1756564563113,300.0,0.00018445,2]
[382286022,1756564563416,151.0,0.000175,2]
[382286023,1756564563597,151.0,0.000166,2]
[382286024,1756564563904,151.0,0.000158,2]
[382286025,1756564564257,151.0,0.00015,2]
[382286026,1756564564604,151.0,0.000142,2]
[382286027,1756564565058,151.0,0.000134,2]
[382286028,1756564565761,151.0,0.000126,2]
[382286029,1756564565913,151.0,0.000118,2]
[382286030,1756564566942,146.21469601,0.00011,2]
[382286031,1756564566967,4.78530399,0.00011,2]
[382286032,1756564567119,-7082.04975921,0.00018446,2]
[382286033,1756564567297,-10000.01,0.00018446,2]
[382286036,1756564681139,156.02,0.00015984,2]
[382286037,1756564681661,156.02,0.00015984,2]
[382286038,1756564684407,1000.0,0.00017442,2]
[382286046,1756564806688,151.0,0.00017949,2]
[382286047,1756564807532,156.587,0.00017949,2]
[382286048,1756564808250,199.23998575,0.00017949,2]
[382286049,1756564990990,9493.18301425,0.00017413,2]
[382286050,1756564991015,10000.01,0.00017413,2]
[382286051,1756564991038,10000.01,0.00017413,2]
[382286052,1756564991062,10000.01,0.00017413,2]
[382286053,1756564991089,10000.01,0.00017413,2]
[382286054,1756564991114,10000.01,0.00017413,2]
[382286055,1756564991138,10000.01,0.00017413,2]
[382286056,1756564991162,10000.01,0.00017413,2]
[382286057,1756564991186,10000.01,0.00017413,2]
[382286058,1756564991213,7510.53698575,0.00017413,2]
[382286059,1756565013934,2489.47301425,0.00018011,2]
[382286060,1756565013959,2510.52698575,0.00018011,2]
[382286061,1756565038444,5000.0,0.00018011,2]
[382286063,1756565053353,250.0,0.00017936,2]
[382286065,1756565069560,1000.0,0.00031176,60]
[382286066,1756565081529,900.0,0.00031176,60]
[382286067,1756565084294,1849.450971,0.00017393,2]
[382286068,1756565099761,800.0,0.00031176,60]
[382286069,1756565106293,151.15227594,0.00017951,2]
[382286070,1756565121183,203.5862917,0.00017401,2]
[382286071,1756565133958,1125.41527251,0.00031173,60]
[382286072,1756565135337,5000.0,0.00027397,120]
[382286073,1756565168444,403.76135321,0.00027397,120]
[382286251,1756565437849,-415.45629277,0.00018128,2]
[382286253,1756565437860,-150.74373565,0.00018128,2]
[382286255,1756565437871,-204.61318867,0.00018243,2]
[382286257,1756565437880,-204.61318867,0.00018274,2]
[382286259,1756565437889,-152.50331541,0.00018334,2]
[382286261,1756565437898,-160.0,0.00018343,2]
[382286262,1756565437909,-854.0,0.00018358,2]
[382286264,1756565437919,-1200.0,0.00018372,2]
[382286266,1756565437928,-300.0,0.00018372,2]
[382286268,1756565437938,-193.0,0.00018372,2]
[382286270,1756565437947,-300.0,0.00018372,2]
[382286272,1756565437957,-1200.0,0.00018372,2]
[382286274,1756565437967,-300.0,0.00018372,2]
[382286276,1756565437977,-32253.05496558,0.00018372,2]
[382286279,1756565437996,-17746.94503442,0.00018372,2]
[382286281,1756565438006,-1177.94177425,0.00018374,7]
[382286289,1756565438069,-736.12090922,0.00018374,7]
[382286291,1756565438081,-357.93594716,0.00018374,7]
[382286293,1756565438092,-783.65300744,0.00018374,7]
[382286295,1756565438102,-60.89670096,0.00018393,2]
[382286303,1756565438181,-793.10329904,0.00018393,2]
[382286305,1756565438191,-200.0,0.000184,2]
[382286307,1756565438200,-2347.87260389,0.00018425,2]
[382286309,1756565438211,-151.08059236,0.00018435,2]
[382286311,1756565438221,-500.0,0.00018435,2]
[382286313,1756565438230,-500.0,0.00018435,2]
[382286315,1756565438239,-500.0,0.00018435,2]
[382286326,1756565438421,-500.0,0.00018435,2]
[382286328,1756565438436,-500.0,0.00018435,2]
[382286330,1756565438446,-187.78006525,0.00018435,2]
[382286332,1756565438455,-500.0,0.00018435,2]
[382286334,1756565438464,-500.0,0.00018435,2]
[382286336,1756565438473,-500.0,0.00018435,2]
[382286338,1756565438482,-500.0,0.00018435,2]
[382286340,1756565438492,-500.0,0.00018435,2]
[382286342,1756565438501,-500.0,0.00018435,2]
[382286344,1756565438511,-500.0,0.00018435,2]
[382286346,1756565438520,-500.0,0.00018435,2]
[382286348,1756565438529,-500.0,0.00018435,2]
[382286350,1756565438539,-4136.58,0.00018436,3]
[382286352,1756565438548,-2068.29,0.00018436,3]
[382286354,1756565438561,-1034.14,0.00018436,3]
[382286356,1756565438570,-517.07,0.00018436,3]
[382286358,1756565438579,-258.54,0.00018436,3]
[382286360,1756565438589,-775.64,0.00018436,3]
[382286362,1756565438600,-702.91,0.00018436,3]
[382286364,1756565438609,-351.46,0.00018436,3]
[382286366,1756565438620,-175.73,0.00018436,3]
[382286368,1756565438630,-393.12,0.00018436,3]
[382286370,1756565438639,-430.88,0.00018436,3]
[382286372,1756565438649,-215.44,0.00018436,3]
[382286374,1756565438658,-646.37,0.00018436,3]
[382286376,1756565438668,-155.92,0.00018436,3]
[382286378,1756565438677,-595.49,0.00018436,3]
[382286380,1756565438687,-297.74,0.00018436,3]
[382286382,1756565438696,-893.25,0.00018436,3]
[382286384,1756565438705,-11361.55901651,0.00018436,3]
[382286386,1756565438715,-529.89603018,0.00018436,3]
[382286388,1756565438724,-425.65682239,0.00018436,3]
[382286390,1756565438734,-216.25802849,0.00018436,3]
[382286392,1756565438743,-500.0,0.00018445,2]
[382286394,1756565438752,-166.81018431,0.00018445,2]
[382286396,1756565438762,-500.0,0.00018445,2]
[382286398,1756565438771,-158.727368,0.00018445,2]
[382286401,1756565438781,-500.0,0.00018445,2]
[382286403,1756565438791,-228.7906949,0.00018445,2]
[382286405,1756565438801,-183.86184299,0.00018445,2]
[382286406,1756565438811,-500.0,0.00018445,2]
[382286408,1756565438820,-500.0,0.00018445,2]
[382286410,1756565438830,-500.0,0.00018445,2]
[382286412,1756565438839,-438.2434944,0.00018445,2]
[382286414,1756565438848,-500.0,0.00018445,2]
[382286416,1756565438858,-500.0,0.00018445,2]
[382286418,1756565438868,-500.0,0.00018445,2]
[382286420,1756565438878,-606.13943746,0.00018445,2]
[382286422,1756565438887,-500.0,0.00018445,2]
[382286424,1756565438897,-500.0,0.00018445,2]
[382286426,1756565438906,-500.0,0.00018445,2]
[382286428,1756565438916,-500.0,0.00018445,2]
[382286430,1756565438925,-500.0,0.00018445,2]
[382286432,1756565438935,-246.42813058,0.00018445,2]
[382286434,1756565438944,-500.0,0.00018445,2]
[382286436,1756565438953,-500.0,0.00018445,2]
[382286438,1756565438965,-500.0,0.00018445,2]
[382286440,1756565438975,-500.0,0.00018445,2]
[382286442,1756565438985,-431.62456716,0.00018445,2]
[382286444,1756565438994,-500.0,0.00018445,2]
[382286446,1756565439004,-500.0,0.00018445,2]
[382286448,1756565439013,-500.0,0.00018445,2]
[382286450,1756565439022,-500.0,0.00018445,2]
[382286452,1756565439032,-474.56610394,0.00018445,2]
[382286454,1756565439041,-500.0,0.00018445,2]
[382286456,1756565439051,-500.0,0.00018445,2]
[382286458,1756565439060,-500.0,0.00018445,2]
[382286460,1756565439069,-500.0,0.00018445,2]
[382286463,1756565439079,-500.0,0.00018445,2]
[382286465,1756565439088,-473.78856671,0.00018445,2]
[382286467,1756565439097,-500.0,0.00018445,2]
[382286469,1756565439107,-500.0,0.00018445,2]
[382286471,1756565439118,-500.0,0.00018445,2]
[382286473,1756565439127,-500.0,0.00018445,2]
[382286475,1756565439137,-500.0,0.00018445,2]
[382286477,1756565439147,-500.0,0.00018445,2]
[382286479,1756565439156,-500.0,0.00018445,2]
[382286481,1756565439166,-500.0,0.00018445,2]
[382286483,1756565439176,-302.28835558,0.00018445,2]
[382286485,1756565439185,-500.0,0.00018445,2]
[382286487,1756565439195,-500.0,0.00018445,2]
[382286488,1756565439204,-500.0,0.00018445,2]
[382286490,1756565439213,-500.0,0.00018445,2]
[382286492,1756565439223,-500.0,0.00018445,2]
[382286495,1756565439232,-351576.9790258,0.00018446,2]
[382286496,1756565439241,-608.64124363,0.00018473,2]
[382286499,1756565439251,-500.0,0.00018473,2]
[382286501,1756565439261,-500.0,0.00018473,2]
[382286503,1756565439270,-500.0,0.00018473,2]
[382286505,1756565439279,-212.75742335,0.00018473,2]
[382286507,1756565439290,-244.67576448,0.00018473,2]
[382286509,1756565439299,-500.0,0.00018473,2]
[382286510,1756565439309,-500.0,0.00018473,2]
[382286512,1756565439318,-500.0,0.00018473,2]
[382286514,1756565439327,-500.0,0.00018473,2]
[382286516,1756565439337,-500.0,0.00018473,2]
[382286518,1756565439346,-500.0,0.00018473,2]
[382286521,1756565439355,-500.0,0.00018473,2]
[382286523,1756565439364,-500.0,0.00018473,2]
[382286525,1756565439375,-501.88061265,0.00018473,2]
[382286527,1756565439384,-500.0,0.00018473,2]
[382286528,1756565439393,-377.58739239,0.00018473,2]
[382286531,1756565439403,-500.0,0.00018473,2]
[382286533,1756565439412,-554.46295892,0.00018473,2]
[382286534,1756565439422,-500.0,0.00018473,2]
[382286537,1756565439433,-500.0,0.00018473,2]
[382286538,1756565439443,-400.92377988,0.00018473,2]
[382286540,1756565439452,-500.0,0.00018473,2]
[382286542,1756565439461,-500.0,0.00018473,2]
[382286544,1756565439471,-500.0,0.00018473,2]
[382286546,1756565439480,-500.0,0.00018473,2]
[382286548,1756565439489,-500.0,0.00018473,2]
[382286550,1756565439499,-500.0,0.00018473,2]
[382286552,1756565439509,-501.66464817,0.00018473,2]
[382286555,1756565439518,-500.0,0.00018473,2]
[382286557,1756565439527,-500.0,0.00018473,2]
[382286560,1756565439537,-500.0,0.00018473,2]
[382286562,1756565439549,-500.0,0.00018473,2]
[382286564,1756565439563,-500.0,0.00018473,2]
[382286567,1756565439573,-500.0,0.00018473,2]
[382286568,1756565439582,-500.0,0.00018473,2]
[382286571,1756565439592,-500.0,0.00018473,2]
[382286573,1756565439601,-501.74279141,0.00018473,2]
[382286574,1756565439611,-500.0,0.00018473,2]
[382286577,1756565439621,-367.51569067,0.00018473,2]
[382286578,1756565439630,-227.83406372,0.00018473,2]
[382286581,1756565439640,-500.0,0.00018473,2]
[382286583,1756565439649,-500.0,0.00018473,2]
[382286585,1756565439659,-500.0,0.00018473,2]
[382286587,1756565439668,-501.96260547,0.00018473,2]
[382286589,1756565439678,-500.0,0.00018473,2]
[382286591,1756565439688,-500.0,0.00018473,2]
[382286593,1756565439698,-503.44474853,0.00018473,2]
[382286594,1756565439707,-500.0,0.00018473,2]
[382286596,1756565439717,-500.0,0.00018473,2]
[382286598,1756565439727,-500.0,0.00018473,2]
[382286600,1756565439737,-500.0,0.00018473,2]
[382286603,1756565439748,-500.0,0.00018473,2]
[382286605,1756565439759,-501.00989355,0.00018473,2]
[382286607,1756565439769,-500.0,0.00018473,2]
[382286609,1756565439779,-501.60924757,0.00018473,2]
[382286611,1756565439789,-500.0,0.00018473,2]
[382286613,1756565439802,-2434.74389024,0.0001848,2]
[382286615,1756565439812,-59325.94128256,0.000185,2]
[382286617,1756565439822,-2524.82941417,0.00018535,2]
[382286619,1756565439831,-1661.82517108,0.00018553,2]
[382286621,1756565439840,-2618.2481025,0.0001859,2]
[382286623,1756565439849,-151.0,0.000186,2]
[382286625,1756565439859,-2715.12328229,0.00018645,2]
[382286627,1756565439869,-854.0,0.00018673,2]
[382286629,1756565439878,-314.0,0.00018684,2]
[382286631,1756565439888,-2815.58284374,0.000187,2]
[382286633,1756565439897,-151.0,0.000187,2]
[382286635,1756565439908,-500.0,0.00018719,2]
[382286637,1756565439919,-2919.75940895,0.00018755,2]
[382286639,1756565439929,-1331.94133879,0.00018757,2]
[382286641,1756565439939,-854.0,0.00018768,2]
[382286643,1756565439949,-151.0,0.000188,2]
[382286645,1756565439958,-151.0,0.000188,2]
[382286647,1756565439968,-3027.79050709,0.0001881,2]
[382286649,1756565439977,-484.712,0.00018814,2]
[382286651,1756565439987,-176.77108969,0.00018863,2]
[382286653,1756565439996,-3139.81875585,0.00018865,2]
[382286655,1756565440006,-728.11,0.00018876,2]
[382286657,1756565440016,-1331.94133879,0.00018885,2]
[382286659,1756565440027,-151.0,0.000189,2]
[382286661,1756565440037,-151.0,0.000189,2]
[382286663,1756565440046,-151.0,0.000189,2]
[382286665,1756565440056,-490.2288981,0.00018913,2]
[382286667,1756565440066,-4715.68082478,0.00018913,2]
[382286669,1756565440076,-8383.43257739,0.00018913,2]
[382286671,1756565440086,-599.35553908,0.00018913,2]
[382286673,1756565440095,-2397.42215632,0.00018913,2]
[382286675,1756565440107,-5388.80565186,0.00018913,2]
[382286677,1756565440117,-151.0,0.00018913,2]
[382286679,1756565440127,-500.0,0.00018913,2]
[382286681,1756565440136,-500.0,0.00018913,2]
[382286683,1756565440146,-151.0,0.00018913,2]
[382286685,1756565440155,-500.0,0.00018913,2]
[382286687,1756565440165,-500.0,0.00018913,2]
[382286689,1756565440175,-500.0,0.00018913,2]
[382286691,1756565440185,-151.72318566,0.00018913,2]
[382286693,1756565440194,-500.0,0.00018913,2]
[382286695,1756565440204,-151.0,0.00018913,2]
[382286697,1756565440213,-151.0,0.00018913,2]
[382286699,1756565440223,-151.0,0.00018913,2]
[382286701,1756565440232,-500.0,0.00018913,2]
[382286703,1756565440241,-151.31965505,0.00018913,2]
[382286705,1756565440251,-848.0,0.00018913,2]
[382286707,1756565440261,-151.0,0.00018913,2]
[382286709,1756565440271,-151.0,0.00018913,2]
[382286711,1756565440280,-500.0,0.00018913,2]
[382286713,1756565440290,-500.0,0.00018913,2]
[382286714,1756565440299,-152.89868183,0.00018913,2]
[382286716,1756565440309,-500.0,0.00018913,2]
[382286718,1756565440319,-151.0,0.00018913,2]
[382286720,1756565440330,-314.12897139,0.00018913,2]
[382286723,1756565440343,-1255.25936966,0.00018913,2]
[382286725,1756565440352,-151.36424091,0.00018913,2]
[382286727,1756565440362,-151.0,0.00018913,2]
[382286729,1756565440372,-500.0,0.00018913,2]
[382286731,1756565440381,-151.0,0.00018913,2]
[382286733,1756565440391,-152.04485438,0.00018913,2]
[382286735,1756565440400,-151.0,0.00018913,2]
[382286737,1756565440412,-151.0,0.00018913,2]
[382286739,1756565440421,-500.0,0.00018913,2]
[382286741,1756565440431,-500.0,0.00018913,2]
[382286743,1756565440440,-500.0,0.00018913,2]
[382286745,1756565440450,-3255.99204981,0.0001892,2]
[382286747,1756565440463,-168.0,0.00018939,2]
[382286749,1756565440472,-174.07937744,0.00018945,2]
[382286751,1756565440482,-121359.9859106,0.0001897,2]
[382286753,1756565440492,-3376.46375566,0.00018975,2]
[382286755,1756565440502,-3735.3675283,0.00018977,2]
[382286757,1756565440511,-9826.7950641,0.00018985,2]
[382286759,1756565440521,-29480.3851922,0.00018985,2]
[382286761,1756565440530,-4552.29432107,0.0001899,2]
[382286763,1756565440539,-305348.42352618,0.0001899,2]
[382286765,1756565440553,-287.70733921,0.0001899,2]
[382286768,1756565440568,-1611.73860243,0.0001899,2]
[382286770,1756565440579,-8530.87219,0.0001899,2]
[382286772,1756565440590,-7294.40496446,0.0001899,2]
[382286843,1756565441262,-304.2614001,0.0001899,2]
[382286853,1756565441353,-123419.05823127,0.0001899,2]
[382286855,1756565441365,-115917.15821895,0.0001899,2]
[382286859,1756565441392,-1006.2831917,0.0001899,2]
[382286861,1756565441404,-435.79460205,0.0001899,2]
[382286863,1756565441415,-57481.79080151,0.0001899,2]
[382287022,1756565443173,-5972.01648197,0.0001899,2]
[382287278,1756565446076,-415.45629277,0.00018913,2]
[382287280,1756565446087,-8384.89780723,0.0001899,2]
[382287296,1756565446227,-467717.78264294,0.0001899,2]
[382287298,1756565446238,-3034.86288071,0.0001899,2]
[382287300,1756565446248,-500.0,0.00018993,2]
[382287302,1756565446258,-1500.0,0.00019,2]
[382287304,1756565446267,-1506.27,0.00019,2]
[382287306,1756565446278,-115771.52,0.00019,2]
[382287308,1756565446287,-160.16263417,0.00019,20]
[382287310,1756565446297,-2987.7028459,0.00019,2]
[382287312,1756565446307,-301.43,0.00019,2]
[382287314,1756565446317,-151.0,0.00019,2]
[382287316,1756565446326,-151.0,0.00019,2]
[382287318,1756565446336,-151.0,0.00019,2]
[382287320,1756565446346,-151.0,0.00019,2]
[382287322,1756565446356,-151.0,0.00019,2]
[382287324,1756565446366,-151.0,0.00019,2]
[382287326,1756565446376,-151.0,0.00019,2]
[382287328,1756565446387,-151.0,0.00019,2]
[382287330,1756565446397,-562.16930772,0.00019021,2]
[382287332,1756565446407,-1000.0,0.00019021,2]
[382287334,1756565446418,-1000.0,0.00019021,2]
[382287336,1756565446427,-503.6477485,0.00019021,2]
[382287338,1756565446438,-509.07670686,0.00019021,2]
[382287340,1756565446448,-1000.0,0.00019021,2]
[382287342,1756565446459,-1000.0,0.00019021,2]
[382287344,1756565446468,-1000.0,0.00019021,2]
[382287346,1756565446480,-1000.0,0.00019021,2]
[382287348,1756565446490,-500.0,0.00019021,2]
[382287350,1756565446499,-1000.0,0.00019021,2]
[382287352,1756565446509,-1000.0,0.00019021,2]
[382287354,1756565446518,-1000.0,0.00019021,2]
[382287356,1756565446528,-430.01699793,0.00019021,2]
[382287358,1756565446537,-1000.0,0.00019021,2]
[382287360,1756565446547,-1000.0,0.00019021,2]
[382287362,1756565446559,-1000.0,0.00019021,2]
[382287364,1756565446569,-1000.0,0.00019021,2]
[382287366,1756565446579,-1037.30438002,0.00019021,2]
[382287368,1756565446589,-1000.0,0.00019021,2]
[382287370,1756565446599,-1000.0,0.00019021,2]
[382287372,1756565446610,-1000.0,0.00019021,2]
[382287374,1756565446620,-565.55158236,0.00019021,2]
[382287376,1756565446633,-1000.0,0.00019021,2]
[382287378,1756565446643,-1000.0,0.00019021,2]
[382287380,1756565446652,-1000.0,0.00019021,2]
[382287382,1756565446663,-1000.0,0.00019021,2]
[382287383,1756565446673,-1000.0,0.00019021,2]
[382287386,1756565446684,-1000.0,0.00019021,2]
[382287387,1756565446695,-1000.0,0.00019021,2]
[382287389,1756565446706,-1000.0,0.00019021,2]
[382287392,1756565446716,-1000.0,0.00019021,2]
[382287393,1756565446727,-1000.0,0.00019021,2]
[382287396,1756565446737,-1000.0,0.00019021,2]
[382287397,1756565446748,-1000.0,0.00019021,2]
[382287399,1756565446758,-1000.0,0.00019021,2]
[382287401,1756565446767,-1000.0,0.00019021,2]
[382287403,1756565446779,-1000.0,0.00019021,2]
[382287405,1756565446789,-1000.0,0.00019021,2]
[382287407,1756565446799,-1000.0,0.00019021,2]
[382287409,1756565446808,-1000.0,0.00019021,2]
[382287411,1756565446817,-1000.0,0.00019021,2]
[382287413,1756565446828,-3501.39291462,0.0001903,2]
[382287415,1756565446838,-151.74203853,0.00019034,2]
[382287417,1756565446848,-300.0,0.00019045,20]
[382287419,1756565446858,-300.0,0.00019045,20]
[382287421,1756565446868,-300.0,0.00019045,20]
[382287423,1756565446879,-300.0,0.00019045,20]
[382287425,1756565446889,-300.0,0.00019045,20]
[382287427,1756565446899,-300.0,0.00019045,20]
[382287429,1756565446908,-300.0,0.00019045,20]
[382287431,1756565446917,-300.0,0.00019045,20]
[382287433,1756565446930,-300.0,0.00019045,20]
[382287435,1756565446940,-300.0,0.00019045,20]
[382287437,1756565446951,-300.0,0.00019045,20]
[382287439,1756565446960,-300.0,0.00019045,20]
[382287442,1756565446971,-300.0,0.00019045,20]
[382287444,1756565446980,-300.0,0.00019045,20]
[382287446,1756565446990,-300.0,0.00019045,20]
[382287447,1756565447000,-500.0,0.00019045,20]
[382287449,1756565447009,-500.0,0.00019045,20]
[382287451,1756565447019,-500.0,0.00019045,20]
[382287453,1756565447029,-500.0,0.00019045,20]
[382287455,1756565447039,-151.0,0.00019045,20]
[382287457,1756565447049,-500.0,0.00019045,20]
[382287459,1756565447058,-500.0,0.00019045,20]
[382287461,1756565447068,-500.0,0.00019045,20]
[382287463,1756565447078,-500.0,0.00019045,20]
[382287465,1756565447088,-365.0,0.0001906,2]
[382287467,1756565447098,-7568.38892142,0.00019063,2]
[382287469,1756565447107,-250771.37671463,0.00019063,2]
[382287471,1756565447118,-128473.99713755,0.00019063,2]
[382287473,1756565447128,-206.343722,0.00019063,2]
[382287475,1756565447138,-206.343722,0.00019063,2]
[382287477,1756565447147,-206.343722,0.00019063,2]
[382287479,1756565447158,-206.343722,0.00019063,2]
[382287481,1756565447167,-151.0,0.00019063,2]
[382287483,1756565447176,-151.0,0.00019063,2]
[382287485,1756565447186,-151.0,0.00019063,2]
[382287487,1756565447196,-151.0,0.00019063,2]
[382287489,1756565447205,-151.0,0.00019063,2]
[382287491,1756565447215,-151.0,0.00019063,2]
[382287493,1756565447225,-151.0,0.00019063,2]
[382287495,1756565447235,-151.0,0.00019063,2]
[382287497,1756565447244,-151.0,0.00019063,2]
[382287499,1756565447254,-151.0,0.00019063,2]
[382287501,1756565447264,-199.496,0.00019063,2]
[382287503,1756565447274,-151.0,0.00019063,2]
[382287505,1756565447283,-151.0,0.00019063,2]